[Event "Queens Festival Final Team 2022"]
[Site "Tornelo"]
[Date "2022.06.26"]
[Round "6.5"]
[White "Alboredo, Julia"]
[Black "khezrian, Neda"]
[Result "1-0"]
[ECO "C44"]
[WhiteElo "2252"]
[BlackElo "1056"]
[Annotator "TA"]
[PlyCount "31"]
[EventDate "2022.06.24"]
[EventType "team-tourn"]
[EventCountry "NET"]
[SourceTitle "playchess.com"]
[Source "ChessBase"]
[SourceQuality "1"]
[WhiteTeam "Brazil"]
[BlackTeam "Iran"]
[WhiteTeamCountry "BRA"]
[BlackTeamCountry "IRI"]
[TimeControl "180+2"]

{[%evp 10,31,61,57,132,134,305,219,293,212,217,220,213,217,198,187,361,207,292,185,172,58,83,83]} 1. e4 {[%emt 0:00:02]} e5 {[%emt 0:00:04][%cal Be7e5,Be5d4,Bd4c3][%mdl 32]} 2. Nf3 {[%emt 0:00:03]} Nc6 {[%emt 0:00:02]} 3. d4 {[%emt 0:00:01]} exd4 {[%emt 0:00:08]} 4. Bc4 {[%emt 0:00:01]} Bc5 {[%emt 0:00:16]} 5. c3 {[%emt 0:00:02]} dxc3 {[%emt 0:00:21]} 6. Bxf7+ $1 {[%emt 0:00:02]} (6. Nxc3 d6 $11) 6... Kf8 {[%emt 0:00:14] C44: Ponziani Opening and Scotch Gambit.} (6... Kxf7 $14 7. Qd5+ Kf8 8. Qxc5+ d6 9. Qxc3 Qe7) 7. Bb3 {[%emt 0:00:14]} (7. Qd5 cxb2 8. Bxb2 (8. Qxc5+ $2 d6 $19) 8... Bb4+ 9. Kf1 Nf6 $15) 7... Nge7 $2 {[%emt 0:00:09] [#]} (7... d6 $16) 8. O-O {[%emt 0:00:04]} ({Less strong is} 8. bxc3 Qe8 $16) 8... d6 {[%emt 0:00:22] White is clearly better.} 9. Ng5 {[%emt 0:00:07] [#]} ({Weaker is} 9. bxc3 Qe8 $16) 9... Ne5 $146 {[%emt 0:01:19] Against Qf3+} ({Predecessor:} 9... c2 10. Qf3+ Nf5 11. Nc3 Ncd4 12. Qf4 Bb4 13. exf5 Bxc3 14. Ne6+ Bxe6 15. fxe6+ Qf6 16. Qxf6+ gxf6 17. bxc3 Ke7 18. cxd4 {1-0 (18) Troyke,J (1667)-Marzisch,D (1470) Malchow 2017}) 10. Nxc3 {[%emt 0:00:19] Hoping for Kh1.} h6 {[%emt 0:00:17] [#]} 11. Ne6+ {[%emt 0:00:02]} Bxe6 {[%emt 0:00:03]} 12. Bxe6 {[%emt 0:00:00]} Ke8 $2 {[%emt 0:00:05]} (12... N7c6 13. Be3 g5) 13. Bf4 {[%emt 0:00:09]} (13. Kh1 $142) 13... Rf8 {[%emt 0:00:03]} (13... N7g6 $142) 14. Bxe5 {[%emt 0:00:05] Chess con chili.} dxe5 {[%emt 0:00:02]} 15. Nd5 {[%emt 0:00:09]} (15. Qg4 $18 g6 16. Rad1) 15... Nxd5 {[%emt 0:00:03]} 16. exd5 {[%emt 0:00:02] Weighted Error Value: White=0.54/Black=0.84} ({Much worse is} 16. Qxd5 Qxd5 17. Bxd5 c6 $15) 1-0

[Event "Queens Festival Final Team 2022"]
[Site "Tornelo"]
[Date "2022.06.26"]
[Round "6.5"]
[White "Masoumi, Sahar"]
[Black "Medeiros, Thauane Ferreira"]
[Result "1-0"]
[ECO "D36"]
[WhiteElo "2004"]
[BlackElo "1884"]
[Annotator "NA RC"]
[PlyCount "53"]
[EventDate "2022.06.24"]
[EventType "team-tourn"]
[EventCountry "NET"]
[SourceTitle "playchess.com"]
[Source "ChessBase"]
[SourceQuality "1"]
[WhiteTeam "Iran"]
[BlackTeam "Brazil"]
[WhiteTeamCountry "IRI"]
[BlackTeamCountry "BRA"]
[TimeControl "180+2"]

1. d4 {[%emt 0:00:02]} d5 {[%emt 0:00:04]} 2. c4 {[%emt 0:00:02]} e6 {[%emt 0:00:02]} 3. Nc3 {[%emt 0:00:01]} Nf6 {[%emt 0:00:01]} 4. cxd5 {[%emt 0:00:01]} exd5 {[%emt 0:00:02]} 5. Bg5 {[%emt 0:00:02]} Be7 {[%emt 0:00:02]} 6. e3 {[%emt 0:00:01]} c6 {[%emt 0:00:01]} 7. Bd3 {[%emt 0:00:01]} O-O {[%emt 0:00:02]} 8. Qc2 {[%emt 0:00:02]} h6 {[%emt 0:00:02]} 9. Bf4 {[%emt 0:00:03]} Re8 {[%emt 0:00:19]} 10. Nf3 {[%emt 0:00:02]} Bd6 {[%emt 0:00:02]} 11. Bxd6 {[%emt 0:00:04]} Qxd6 {[%emt 0:00:01]} 12. O-O {[%emt 0:00:02]} Nbd7 {[%emt 0:00:06]} 13. Rab1 {[%emt 0:00:03]} a5 {[%emt 0:00:02]} 14. a3 {[%emt 0:00:02]} b5 {[%emt 0:00:21]} 15. e4 {[%emt 0:00:13]} dxe4 {[%emt 0:00:02]} 16. Nxe4 {[%emt 0:00:02]} Nxe4 {[%emt 0:00:00]} 17. Bxe4 {[%emt 0:00:01]} Bb7 {[%emt 0:00:07]} 18. Rbd1 {[%emt 0:00:04]} Nf6 {[%emt 0:00:16]} 19. Bd3 {[%emt 0:00:07]} Rad8 {[%emt 0:00:18]} 20. Ne5 {[%emt 0:00:04]} b4 {[%emt 0:00:54]} 21. axb4 {[%emt 0:00:22]} axb4 {[%emt 0:00:06]} 22. Nc4 {[%emt 0:00:14]} Qd5 {[%emt 0:00:26]} 23. Be2 {[%emt 0:00:11]} Qg5 {[%emt 0:00:23]} 24. Bf3 {[%emt 0:00:02]} Nd5 {[%emt 0:00:04]} 25. Kh1 {[%emt 0:00:10]} Ba8 {[%emt 0:00:02]} 26. Ne5 {[%emt 0:00:03]} Rc8 {[%emt 0:00:07]} 27. Qd2 {[%emt 0:00:06]} 1-0

[Event "Queens Festival Final Team 2022"]
[Site "Tornelo"]
[Date "2022.06.26"]
[Round "6.5"]
[White "Bucci, Andrea Vidigal"]
[Black "Davari, Sara"]
[Result "0-1"]
[ECO "C44"]
[WhiteElo "1769"]
[BlackElo "1674"]
[Annotator "NA RC"]
[PlyCount "92"]
[EventDate "2022.06.24"]
[EventType "team-tourn"]
[EventCountry "NET"]
[SourceTitle "playchess.com"]
[Source "ChessBase"]
[SourceQuality "1"]
[WhiteTeam "Brazil"]
[BlackTeam "Iran"]
[WhiteTeamCountry "BRA"]
[BlackTeamCountry "IRI"]
[TimeControl "180+2"]

1. e4 {[%emt 0:00:02]} e5 {[%emt 0:00:04]} 2. Nf3 {[%emt 0:00:02]} Nf6 {[%emt 0:00:02]} 3. d3 {[%emt 0:00:01]} Nc6 {[%emt 0:00:04]} 4. c3 {[%emt 0:00:02]} d5 {[%emt 0:00:03]} 5. Nbd2 {[%emt 0:00:02]} Bd6 {[%emt 0:00:04]} 6. Be2 {[%emt 0:00:01]} O-O {[%emt 0:00:03]} 7. O-O {[%emt 0:00:02]} Bg4 {[%emt 0:00:03]} 8. Re1 {[%emt 0:00:13]} Re8 {[%emt 0:00:08]} 9. Nf1 {[%emt 0:00:02]} dxe4 {[%emt 0:00:03]} 10. dxe4 {[%emt 0:00:03]} Nxe4 {[%emt 0:00:10]} 11. h3 {[%emt 0:00:02]} Bxf3 {[%emt 0:00:04]} 12. Bxf3 {[%emt 0:00:00]} Nf6 {[%emt 0:00:02]} 13. Qb3 {[%emt 0:00:09]} Rb8 {[%emt 0:00:05]} 14. Ng3 {[%emt 0:00:05]} h6 {[%emt 0:00:24]} 15. Nf5 {[%emt 0:00:06]} Ne7 {[%emt 0:00:04]} 16. Ng3 {[%emt 0:00:28]} c6 {[%emt 0:00:14]} 17. Qa4 {[%emt 0:00:06]} a6 {[%emt 0:00:19]} 18. Be3 {[%emt 0:00:09]} Qd7 {[%emt 0:00:08]} 19. Rad1 {[%emt 0:00:04]} Qc7 {[%emt 0:00:02]} 20. Rd2 {[%emt 0:00:17]} Ned5 {[%emt 0:00:03]} 21. Nf5 {[%emt 0:00:16]} Bf8 {[%emt 0:00:08]} 22. Qh4 {[%emt 0:00:09]} Nxe3 {[%emt 0:00:05]} 23. Rxe3 {[%emt 0:00:05]} Rbd8 {[%emt 0:00:14]} 24. Red3 {[%emt 0:00:09]} Rxd3 {[%emt 0:00:03]} 25. Rxd3 {[%emt 0:00:00]} e4 {[%emt 0:00:04]} 26. Re3 {[%emt 0:00:18]} exf3 {[%emt 0:00:06]} 27. Nxh6+ {[%emt 0:00:01]} gxh6 {[%emt 0:00:02]} 28. Qxf6 {[%emt 0:00:01]} Rxe3 {[%emt 0:00:02]} 29. fxe3 {[%emt 0:00:03]} Qg3 {[%emt 0:00:08]} 30. Qxf3 {[%emt 0:00:06]} Qxf3 {[%emt 0:00:01]} 31. gxf3 {[%emt 0:00:00]} Bd6 {[%emt 0:00:02]} 32. Kg2 {[%emt 0:00:01]} Kg7 {[%emt 0:00:02]} 33. f4 {[%emt 0:00:01]} f5 {[%emt 0:00:01]} 34. Kf3 {[%emt 0:00:02]} Kf6 {[%emt 0:00:03]} 35. Ke2 {[%emt 0:00:02]} Bc5 {[%emt 0:00:04]} 36. Kd3 {[%emt 0:00:02]} Kg6 {[%emt 0:00:03]} 37. b4 {[%emt 0:00:02]} Bb6 {[%emt 0:00:02]} 38. a4 {[%emt 0:00:01]} Kh5 {[%emt 0:00:02]} 39. c4 {[%emt 0:00:03]} Kh4 {[%emt 0:00:06]} 40. c5 {[%emt 0:00:02]} Bc7 {[%emt 0:00:02]} 41. Kd4 {[%emt 0:00:01]} Kxh3 {[%emt 0:00:03]} 42. e4 {[%emt 0:00:01]} fxe4 {[%emt 0:00:03]} 43. Kxe4 {[%emt 0:00:00]} Kg4 {[%emt 0:00:01]} 44. f5 {[%emt 0:00:03]} Kg5 {[%emt 0:00:01]} 45. b5 {[%emt 0:00:03]} axb5 {[%emt 0:00:02]} 46. axb5 {[%emt 0:00:01]} cxb5 {[%emt 0:00:00]} 0-1

[Event "Queens Festival Final Team 2022"]
[Site "Tornelo"]
[Date "2022.06.26"]
[Round "6.5"]
[White "Khezrian, Nooralzahra"]
[Black "Gomes, Maria Eduarda Papini"]
[Result "0-1"]
[ECO "B01"]
[WhiteElo "1269"]
[BlackElo "1618"]
[Annotator "NA RC"]
[PlyCount "54"]
[EventDate "2022.06.24"]
[EventType "team-tourn"]
[EventCountry "NET"]
[SourceTitle "playchess.com"]
[Source "ChessBase"]
[SourceQuality "1"]
[WhiteTeam "Iran"]
[BlackTeam "Brazil"]
[WhiteTeamCountry "IRI"]
[BlackTeamCountry "BRA"]
[TimeControl "180+2"]

1. e4 {[%emt 0:00:02]} d5 {[%emt 0:00:04]} 2. exd5 {[%emt 0:00:02]} Qxd5 {[%emt 0:00:02]} 3. Nc3 {[%emt 0:00:02]} Qa5 {[%emt 0:00:01]} 4. Nf3 {[%emt 0:00:02]} Nf6 {[%emt 0:00:02]} 5. g3 {[%emt 0:00:01]} Bf5 {[%emt 0:00:02]} 6. Bg2 {[%emt 0:00:02]} e6 {[%emt 0:00:02]} 7. b4 {[%emt 0:00:01]} Qb6 {[%emt 0:00:10]} 8. a3 {[%emt 0:00:16]} c6 {[%emt 0:00:02]} 9. O-O {[%emt 0:00:03]} Be7 {[%emt 0:00:06]} 10. d3 {[%emt 0:00:03]} Nbd7 {[%emt 0:00:02]} 11. Re1 {[%emt 0:00:03]} O-O {[%emt 0:00:01]} 12. Bf4 {[%emt 0:00:04]} Nd5 {[%emt 0:00:11]} 13. Nxd5 {[%emt 0:00:04]} cxd5 {[%emt 0:00:00]} 14. Ne5 {[%emt 0:00:04]} Nxe5 {[%emt 0:00:11]} 15. Bxe5 {[%emt 0:00:02]} Rac8 {[%emt 0:00:03]} 16. Rc1 {[%emt 0:00:09]} a5 {[%emt 0:00:13]} 17. Rb1 {[%emt 0:00:12]} axb4 {[%emt 0:00:03]} 18. axb4 {[%emt 0:00:02]} Bd6 {[%emt 0:00:25]} 19. Bxd6 {[%emt 0:00:11]} Qxd6 {[%emt 0:00:00]} 20. Qe2 {[%emt 0:00:10]} Rc3 {[%emt 0:00:03]} 21. g4 {[%emt 0:00:12]} Bg6 {[%emt 0:00:02]} 22. h4 {[%emt 0:00:02]} h6 {[%emt 0:00:02]} 23. h5 {[%emt 0:00:03]} Bh7 {[%emt 0:00:02]} 24. Rb2 {[%emt 0:00:07]} Rfc8 {[%emt 0:00:04]} 25. Rc1 {[%emt 0:00:12]} Bxd3 {[%emt 0:00:13]} 26. Qe3 {[%emt 0:00:08]} Bxc2 {[%emt 0:00:07]} 27. g5 {[%emt 0:00:09]} Rxe3 {[%emt 0:00:02]} 0-1

[Event "Queens Festival Final Team 2022"]
[Site "Tornelo"]
[Date "2022.06.26"]
[Round "6.6"]
[White "Perez Rodriguez, Jennifer"]
[Black "Song, Yuxin"]
[Result "1/2-1/2"]
[ECO "B22"]
[WhiteElo "2251"]
[BlackElo "2317"]
[Annotator "TA"]
[PlyCount "90"]
[EventDate "2022.06.24"]
[EventType "team-tourn"]
[EventCountry "NET"]
[SourceTitle "playchess.com"]
[Source "ChessBase"]
[SourceQuality "1"]
[WhiteTeam "Paraguay"]
[BlackTeam "China"]
[WhiteTeamCountry "PAR"]
[BlackTeamCountry "CHN"]
[TimeControl "180+2"]

{[%evp 16,90,-5,0,0,-12,-8,8,0,8,0,11,7,1,7,-28,-31,-77,-74,-73,-23,-33,-14,-32,-25,-28,-23,-26,-8,-13,0,0,35,18,15,0,36,50,48,42,52,0,0,-7,-7,-7,-7,-5,0,0,-4,-6,0,-14,-4,-30,-29,-28,0,-22,0,-31,0,0,0,0,0,0,0,0,0,0,0,0,0,0,0]} 1. e4 {[%emt 0:00:02][%cal Be2e4,Be4e5][%mdl 32]} c5 {[%emt 0:00:04]} 2. c3 {[%emt 0:00:02][%cal Bc2c3,Bc3d4,Bd4e5][%mdl 32]} Nf6 {[%emt 0:00:03]} 3. e5 {[%emt 0:00:01]} Nd5 {[%emt 0:00:01]} 4. d4 {[%emt 0:00:00]} cxd4 {[%emt 0:00:01]} 5. Nf3 {[%emt 0:00:01]} d6 {[%emt 0:00:01]} 6. cxd4 {[%emt 0:00:00]} Nc6 {[%emt 0:00:02]} 7. Bc4 {[%emt 0:00:01]} dxe5 {[%emt 0:00:01]} 8. dxe5 {[%emt 0:00:03]} Ndb4 {[%emt 0:00:02]} 9. Qb3 {[%emt 0:00:04]} e6 {[%emt 0:00:02] B22: Sicilian: 2 c3.} 10. O-O {[%emt 0:00:09]} Na5 {[%emt 0:00:03]} 11. Bb5+ {[%emt 0:00:03]} Bd7 {[%emt 0:00:02]} 12. Qa4 {[%emt 0:00:06] White wants to play Bg5.} Bxb5 {[%emt 0:00:03]} 13. Qxb5+ {[%emt 0:00:01]} Nac6 {[%emt 0:00:01] ...Nc2 is the strong threat.} 14. Nc3 {[%emt 0:00:11]} ({But not} 14. Qxb7 $2 Rb8 15. Bg5 Qa5 16. Qxb8+ Nxb8 $19) 14... a6 {[%emt 0:00:02]} 15. Qe2 {[%emt 0:00:06]} ({Not} 15. Qxb7 $2 Rb8 16. Bg5 Qa5 17. Qxb8+ Nxb8 $19) 15... Qd3 {[%emt 0:00:01]} 16. Bf4 {[%emt 0:00:16]} (16. Rd1 $15 Qxe2 17. Nxe2) 16... Qxe2 $17 {[%emt 0:00:20]} 17. Nxe2 {[%emt 0:00:02]} Nd5 {[%emt 0:00:07]} (17... Rd8 $17) 18. Bd2 $11 {[%emt 0:00:07]} Bc5 {[%emt 0:00:08] [#]} 19. Rac1 $146 {[%emt 0:00:02]} ({Predecessor:} 19. Nc3 Rd8 20. Ne4 Be7 21. Rfd1 O-O 22. Nc3 Ndb4 23. Bf4 Nd3 24. Bg3 Nxb2 25. Rdb1 Ba3 26. Bf4 Nb4 27. Ne1 N4d3 28. Nxd3 Nxd3 29. Be3 Bb2 {0-1 (29) Hallaeva,B (2112)-Zhu,C (2419) Doha 2016}) 19... Ba7 {[%emt 0:00:02]} 20. Nc3 {[%emt 0:00:06]} Nxc3 {[%emt 0:00:18]} 21. Bxc3 {[%emt 0:00:02]} h6 {[%emt 0:00:03]} 22. Nd2 {[%emt 0:00:06]} Ke7 {[%emt 0:00:31]} 23. Ne4 {[%emt 0:00:04]} Bb8 {[%emt 0:00:10]} 24. f4 {[%emt 0:00:04]} Ba7+ {[%emt 0:00:04]} 25. Kh1 {[%emt 0:00:01]} Be3 {[%emt 0:00:07]} 26. Rce1 {[%emt 0:00:06]} Bd4 {[%emt 0:00:02]} 27. Bxd4 {[%emt 0:00:12]} Nxd4 {[%emt 0:00:01]} 28. Rd1 {[%emt 0:00:01]} ({Better is} 28. Nd6 $14) 28... Rhd8 {[%emt 0:00:12]} 29. Nd6 {[%emt 0:00:07]} Nf5 {[%emt 0:00:03]} 30. Nxf5+ {[%emt 0:00:14]} ({Much weaker is} 30. Nxb7 Rdb8 31. Nc5 Rxb2 $17) 30... exf5 {[%emt 0:00:02][%mdl 4096] Endgame KRR-KRR} 31. g3 {[%emt 0:00:04]} Rac8 {[%emt 0:00:03]} 32. Rxd8 {[%emt 0:00:08]} Rxd8 {[%emt 0:00:02] KR-KR} 33. Rf2 {[%emt 0:00:03] Inhibits Rd2.} Ke6 {[%emt 0:00:05]} 34. Kg2 {[%emt 0:00:02]} g5 {[%emt 0:00:02]} 35. Rc2 {[%emt 0:00:03]} Rd4 {[%emt 0:00:05]} 36. Kf3 {[%emt 0:00:04]} Rd3+ {[%emt 0:00:08]} 37. Kg2 {[%emt 0:00:05]} (37. Ke2 $5 {[%cal Re2d3]} Rd7 38. Rc3 $11) 37... Rd4 {[%emt 0:00:04]} 38. Kf3 {[%emt 0:00:02]} Rd3+ {[%emt 0:00:04]} 39. Ke2 {[%emt 0:00:05] The position is equal.} Rd4 {[%emt 0:00:02]} 40. Ke3 {[%emt 0:00:01]} Rb4 {[%emt 0:00:14]} 41. b3 {[%emt 0:00:05]} Re4+ {[%emt 0:00:01]} 42. Kf3 {[%emt 0:00:02]} Rd4 {[%emt 0:00:03] Inhibits Rd2.} 43. Ke3 {[%emt 0:00:05]} Re4+ {[%emt 0:00:02]} 44. Kf3 {[%emt 0:00:01]} Rd4 {[%emt 0:00:12] Inhibits Rd2.} 45. Ke3 {[%emt 0:00:25]} Re4+ {[%emt 0:00:08] Weighted Error Value: White=0.06 (flawless) /Black=0.08 (flawless)} 1/2-1/2

[Event "Queens Festival Final Team 2022"]
[Site "Tornelo"]
[Date "2022.06.26"]
[Round "6.6"]
[White "Hong, Xing"]
[Black "Mayeregger Gonzalez, Fiorella"]
[Result "1-0"]
[ECO "B46"]
[WhiteElo "1999"]
[BlackElo "1284"]
[Annotator "NA RC"]
[PlyCount "45"]
[EventDate "2022.06.24"]
[EventType "team-tourn"]
[EventCountry "NET"]
[SourceTitle "playchess.com"]
[Source "ChessBase"]
[SourceQuality "1"]
[WhiteTeam "China"]
[BlackTeam "Paraguay"]
[WhiteTeamCountry "CHN"]
[BlackTeamCountry "PAR"]
[TimeControl "180+2"]

1. e4 {[%emt 0:00:02]} c5 {[%emt 0:00:05]} 2. Nf3 {[%emt 0:00:02]} e6 {[%emt 0:00:01]} 3. d4 {[%emt 0:00:02]} cxd4 {[%emt 0:00:02]} 4. Nxd4 {[%emt 0:00:01]} a6 {[%emt 0:00:01]} 5. Nc3 {[%emt 0:00:01]} Qc7 {[%emt 0:00:01]} 6. Bd3 {[%emt 0:00:01]} Nf6 {[%emt 0:00:02]} 7. O-O {[%emt 0:00:03]} Nc6 {[%emt 0:00:01]} 8. Nxc6 {[%emt 0:00:01]} bxc6 {[%emt 0:00:04]} 9. Qe2 {[%emt 0:00:02]} d6 {[%emt 0:00:06]} 10. b3 {[%emt 0:00:02]} Be7 {[%emt 0:00:03]} 11. Bb2 {[%emt 0:00:01]} Bb7 {[%emt 0:00:03]} 12. f4 {[%emt 0:00:03]} O-O {[%emt 0:00:03]} 13. e5 {[%emt 0:00:07]} dxe5 {[%emt 0:00:04]} 14. fxe5 {[%emt 0:00:02]} Nd5 {[%emt 0:00:05]} 15. Ne4 {[%emt 0:00:04]} Rad8 {[%emt 0:00:12]} 16. Nf6+ {[%emt 0:00:25]} Bxf6 {[%emt 0:00:27]} 17. Bxh7+ {[%emt 0:00:19]} Kxh7 {[%emt 0:00:13]} 18. Qh5+ {[%emt 0:00:03]} Kg8 {[%emt 0:00:04]} 19. exf6 {[%emt 0:00:01]} Nf4 {[%emt 0:00:11]} 20. Rxf4 {[%emt 0:00:23]} g6 {[%emt 0:00:27]} 21. Qh6 {[%emt 0:00:08]} Qb6+ {[%emt 0:00:02]} 22. Bd4 {[%emt 0:00:11]} Qxd4+ {[%emt 0:00:07]} 23. Rxd4 {[%emt 0:00:02]} 1-0

[Event "Queens Festival Final Team 2022"]
[Site "Tornelo"]
[Date "2022.06.26"]
[Round "6.6"]
[White "Perez, Dalila"]
[Black "Cui, Wen"]
[Result "1/2-1/2"]
[ECO "E01"]
[WhiteElo "1799"]
[BlackElo "1718"]
[Annotator "NA RC"]
[PlyCount "100"]
[EventDate "2022.06.24"]
[EventType "team-tourn"]
[EventCountry "NET"]
[SourceTitle "playchess.com"]
[Source "ChessBase"]
[SourceQuality "1"]
[WhiteTeam "Paraguay"]
[BlackTeam "China"]
[WhiteTeamCountry "PAR"]
[BlackTeamCountry "CHN"]
[TimeControl "180+2"]

1. d4 {[%emt 0:00:02]} d5 {[%emt 0:00:05]} 2. Nf3 {[%emt 0:00:01]} Nf6 {[%emt 0:00:03]} 3. c4 {[%emt 0:00:02]} e6 {[%emt 0:00:01]} 4. g3 {[%emt 0:00:01]} c6 {[%emt 0:00:03]} 5. Bg2 {[%emt 0:00:01]} Bd6 {[%emt 0:00:01]} 6. Nbd2 {[%emt 0:00:01]} O-O {[%emt 0:00:02]} 7. O-O {[%emt 0:00:01]} Nbd7 {[%emt 0:00:05]} 8. Qc2 {[%emt 0:00:01]} Re8 {[%emt 0:00:15]} 9. e4 {[%emt 0:00:03]} dxe4 {[%emt 0:00:02]} 10. Nxe4 {[%emt 0:00:03]} Nxe4 {[%emt 0:00:04]} 11. Qxe4 {[%emt 0:00:00]} Nf6 {[%emt 0:00:09]} 12. Qc2 {[%emt 0:00:03]} e5 {[%emt 0:00:28]} 13. dxe5 {[%emt 0:00:04]} Bxe5 {[%emt 0:00:01]} 14. Nxe5 {[%emt 0:00:01]} Rxe5 {[%emt 0:00:02]} 15. Bf4 {[%emt 0:00:02]} Bf5 {[%emt 0:00:10]} 16. Qb3 {[%emt 0:00:14]} Re7 {[%emt 0:00:04]} 17. Bg5 {[%emt 0:00:06]} Rd7 {[%emt 0:00:04]} 18. Rad1 {[%emt 0:00:08]} h6 {[%emt 0:00:37]} 19. Rxd7 {[%emt 0:00:08]} Qxd7 {[%emt 0:00:03]} 20. Bxf6 {[%emt 0:00:02]} gxf6 {[%emt 0:00:01]} 21. Rd1 {[%emt 0:00:05]} Qe7 {[%emt 0:00:03]} 22. c5 {[%emt 0:00:18]} Rd8 {[%emt 0:00:17]} 23. Rxd8+ {[%emt 0:00:14]} Qxd8 {[%emt 0:00:02]} 24. h4 {[%emt 0:00:01]} Qd7 {[%emt 0:00:06]} 25. Qc3 {[%emt 0:00:09]} Kg7 {[%emt 0:00:02]} 26. Bf3 {[%emt 0:00:06]} Bg6 {[%emt 0:00:06]} 27. h5 {[%emt 0:00:03]} Bf5 {[%emt 0:00:02]} 28. Kg2 {[%emt 0:00:04]} Qe6 {[%emt 0:00:05]} 29. a3 {[%emt 0:00:04]} Qd7 {[%emt 0:00:07]} 30. Qb4 {[%emt 0:00:04]} Qc7 {[%emt 0:00:04]} 31. Qd4 {[%emt 0:00:06]} Qe7 {[%emt 0:00:09]} 32. b4 {[%emt 0:00:07]} Qd7 {[%emt 0:00:07]} 33. Qf4 {[%emt 0:00:12]} Qe6 {[%emt 0:00:04]} 34. a4 {[%emt 0:00:11]} Qe5 {[%emt 0:00:04]} 35. Qd2 {[%emt 0:00:06]} Be6 {[%emt 0:00:04]} 36. b5 {[%emt 0:00:04]} Qxc5 {[%emt 0:00:11]} 37. bxc6 {[%emt 0:00:04]} bxc6 {[%emt 0:00:01]} 38. a5 {[%emt 0:00:05]} Bd5 {[%emt 0:00:05]} 39. a6 {[%emt 0:00:21]} Bxf3+ {[%emt 0:00:02]} 40. Kxf3 {[%emt 0:00:01]} Qxh5+ {[%emt 0:00:02]} 41. Ke3 {[%emt 0:00:07]} Qb5 {[%emt 0:00:03]} 42. Qd3 {[%emt 0:00:03]} Qb6+ {[%emt 0:00:02]} 43. Ke2 {[%emt 0:00:04]} Kf8 {[%emt 0:00:05]} 44. Ke1 {[%emt 0:00:15]} Qb5 {[%emt 0:00:04]} 45. Qd8+ {[%emt 0:00:03]} Kg7 {[%emt 0:00:02]} 46. Qc8 {[%emt 0:00:02]} Qb6 {[%emt 0:00:03]} 47. Qg4+ {[%emt 0:00:03]} Kf8 {[%emt 0:00:02]} 48. Qc8+ {[%emt 0:00:06]} Kg7 {[%emt 0:00:02]} 49. Qg4+ {[%emt 0:00:02]} Kf8 {[%emt 0:00:03]} 50. Qc8+ {[%emt 0:00:02]} Kg7 {[%emt 0:00:04]} 1/2-1/2

[Event "Queens Festival Final Team 2022"]
[Site "Tornelo"]
[Date "2022.06.26"]
[Round "6.6"]
[White "Jiang, Tianyu"]
[Black "Mayeregger Gonzalez, Renata"]
[Result "1-0"]
[ECO "C25"]
[WhiteElo "1502"]
[BlackElo "1461"]
[Annotator "NA RC"]
[PlyCount "91"]
[EventDate "2022.06.24"]
[EventType "team-tourn"]
[EventCountry "NET"]
[SourceTitle "playchess.com"]
[Source "ChessBase"]
[SourceQuality "1"]
[WhiteTeam "China"]
[BlackTeam "Paraguay"]
[WhiteTeamCountry "CHN"]
[BlackTeamCountry "PAR"]
[TimeControl "180+2"]

1. Nc3 {[%emt 0:00:02]} e5 {[%emt 0:00:05]} 2. e4 {[%emt 0:00:02]} Nc6 {[%emt 0:00:07]} 3. f4 {[%emt 0:00:02]} f6 {[%emt 0:00:02]} 4. Bb5 {[%emt 0:00:06]} a6 {[%emt 0:00:04]} 5. Bxc6 {[%emt 0:00:03]} bxc6 {[%emt 0:00:07]} 6. fxe5 {[%emt 0:00:01]} fxe5 {[%emt 0:00:07]} 7. Qh5+ {[%emt 0:00:02]} g6 {[%emt 0:00:15]} 8. Qxe5+ {[%emt 0:00:02]} Qe7 {[%emt 0:00:01]} 9. Qxh8 {[%emt 0:00:16]} Nf6 {[%emt 0:00:11]} 10. d3 {[%emt 0:00:01]} d5 {[%emt 0:00:03]} 11. Bh6 {[%emt 0:00:03]} dxe4 {[%emt 0:00:16]} 12. Qxf8+ {[%emt 0:00:02]} Qxf8 {[%emt 0:00:01]} 13. Bxf8 {[%emt 0:00:00]} Kxf8 {[%emt 0:00:02]} 14. Nxe4 {[%emt 0:00:01]} Nxe4 {[%emt 0:00:03]} 15. dxe4 {[%emt 0:00:00]} Bg4 {[%emt 0:00:02]} 16. Nf3 {[%emt 0:00:02]} Re8 {[%emt 0:00:04]} 17. O-O-O {[%emt 0:00:02]} Rxe4 {[%emt 0:00:03]} 18. Rhf1 {[%emt 0:00:00]} Kg7 {[%emt 0:00:03]} 19. h3 {[%emt 0:00:03]} Bxf3 {[%emt 0:00:03]} 20. Rxf3 {[%emt 0:00:00]} Ra4 {[%emt 0:00:02]} 21. Rd7+ {[%emt 0:00:02]} Kh6 {[%emt 0:00:08]} 22. Rxc7 {[%emt 0:00:02]} Rxa2 {[%emt 0:00:09]} 23. Rff7 {[%emt 0:00:02]} Ra1+ {[%emt 0:00:05]} 24. Kd2 {[%emt 0:00:01]} Rg1 {[%emt 0:00:03]} 25. g4 {[%emt 0:00:03]} Rg2+ {[%emt 0:00:02]} 26. Kc3 {[%emt 0:00:02]} Kg5 {[%emt 0:00:03]} 27. Rxc6 {[%emt 0:00:02]} Rg3+ {[%emt 0:00:02]} 28. Kb4 {[%emt 0:00:02]} Rxh3 {[%emt 0:00:01]} 29. Rc5+ {[%emt 0:00:01]} Kxg4 {[%emt 0:00:01]} 30. Rc4+ {[%emt 0:00:01]} Kg5 {[%emt 0:00:05]} 31. Rc5+ {[%emt 0:00:05]} Kg4 {[%emt 0:00:02]} 32. c4 {[%emt 0:00:00]} Rh2 {[%emt 0:00:03]} 33. b3 {[%emt 0:00:02]} h5 {[%emt 0:00:01]} 34. Rg7 {[%emt 0:00:02]} Ra2 {[%emt 0:00:09]} 35. Rxg6+ {[%emt 0:00:02]} Kf4 {[%emt 0:00:01]} 36. Rxh5 {[%emt 0:00:03]} Ke4 {[%emt 0:00:02]} 37. Rg4+ {[%emt 0:00:02]} Kf3 {[%emt 0:00:01]} 38. Rd4 {[%emt 0:00:01]} a5+ {[%emt 0:00:01]} 39. Kb5 {[%emt 0:00:03]} a4 {[%emt 0:00:03]} 40. Rh3+ {[%emt 0:00:02]} Kg2 {[%emt 0:00:02]} 41. Rc3 {[%emt 0:00:02]} axb3 {[%emt 0:00:01]} 42. Rxb3 {[%emt 0:00:02]} Kf2 {[%emt 0:00:02]} 43. c5 {[%emt 0:00:01]} Ke2 {[%emt 0:00:02]} 44. Rh4 {[%emt 0:00:02]} Ra8 {[%emt 0:00:03]} 45. Rh2+ {[%emt 0:00:02]} Kd1 {[%emt 0:00:02]} 46. Rb1# {[%emt 0:00:00]} 1-0